{"text_format":"1","workbook":"xlsx","n_sheets":16,"sheets":["DASHBOARD","INSTRUCCIONES ","CHECKLIST ","ENERO","FEBRERO","MARZO","ABRIL","MAYO","JUNIO","JULIO","AGOSTO","SEPTIEMBRE","OCTUBRE","NOVIEMBRE","DICIEMBRE","AHORRO"],"not_rendered":{"charts":4,"images":12,"macros":1,"external_links":0,"defined_names":0,"comments":0,"pivot_tables":0},"unopened":[],"bounds":{"document_bytes":16777216,"sheet_cells":100000,"rows_first":2000,"rows_last":500,"rows_between":2000,"halvings":0,"cell_chars":16384,"cell_head_chars":4096},"cells_cut":0,"cells_raw":0,"read":"whole","date_system":"1900"}

{"sheet":"DASHBOARD","index":0,"n_rows":39,"n_cols":15,"rows_kept":39,"cut":false,"hidden":false,"merged":[[28,12,28,13],[24,12,24,13],[26,12,26,13],[25,12,25,13],[20,13,21,13],[55,8,55,13],[1,2,1,4],[1,7,1,14],[20,9,21,12],[19,9,19,12],[20,8,21,8],[25,7,25,8],[26,7,27,8]]}
[]
[]
[]
[]
[null,null,null,null,null,null,null,"Ingresos","Egresos",{"$f":"IF(J6<0,\"Pérdida\",\"Ganancia\")","v":"Ganancia"},null,null,"Activos ","Pasivos","Capital neto"]
[null,null,null,null,null,null,null,{"$f":"+ENERO!$C$35+FEBRERO!C35+MARZO!C35+ABRIL!C35+MAYO!C35+JUNIO!C35+JULIO!C35+AGOSTO!C35+SEPTIEMBRE!C35+OCTUBRE!C35+NOVIEMBRE!C35+DICIEMBRE!C35","v":380000},{"$f":"+ENERO!$F$35+FEBRERO!F35+MARZO!F35+ABRIL!F35+MAYO!F35+JUNIO!F35+JULIO!F35+AGOSTO!F35+SEPTIEMBRE!F35+OCTUBRE!F35+NOVIEMBRE!F35+DICIEMBRE!F35","v":320000},{"$f":"+H6-I6","v":60000},null,null,{"$f":"+ENERO!$C$63+FEBRERO!C63+MARZO!C63+ABRIL!C63+MAYO!C63+JUNIO!C63+JULIO!C63+AGOSTO!C63+SEPTIEMBRE!C63+OCTUBRE!C63+NOVIEMBRE!C63+DICIEMBRE!C63","v":70000},{"$f":"+ENERO!$F$63+FEBRERO!F63+MARZO!F63+ABRIL!F63+MAYO!F63+JUNIO!F63+JULIO!F63+AGOSTO!F63+SEPTIEMBRE!F63+OCTUBRE!F63+NOVIEMBRE!F63+DICIEMBRE!F63","v":130000},{"$f":"+M6-N6+AHORRO!F6","v":-20000}]
[]
[]
[]
[]
[]
[]
[]
[]
[]
[]
[]
[]
[]
[null,null,null,null,null,null,null,null,null,"Progreso"]
[null,null,null,null,null,null,null,null,"Ahorro",{"$f":"+AHORRO!G6","v":0.04},null,null,null,"Meta"]
[]
[]
[]
[null,null,null,null,null,null,null,null,null,null,null,null,"Saldo acumulado en caja",null,{"$f":"+ENERO!I12-ENERO!C63-ENERO!I52+ENERO!F63+FEBRERO!I12-FEBRERO!C63-FEBRERO!I52+FEBRERO!F63+MARZO!I12-MARZO!C63-MARZO!I52+MARZO!F63+ABRIL!I12-ABRIL!C63-ABRIL!I52+ABRIL!F63+MAYO!I12-MAYO!C63-MAYO!I52+MAYO!F63+JUNIO!I12-JUNIO!C63-JUNIO!I52+JUNIO!F63+JULIO!I12-JULIO!C63-JULIO!I52+JULIO!F63+AGOSTO!I12-AGOSTO!C63-AGOSTO!I52+AGOSTO!F63+SEPTIEMBRE!I12-SEPTIEMBRE!C63-SEPTIEMBRE!I52+SEPTIEMBRE!F63+OCTUBRE!I12-OCTUBRE!C63-OCTUBRE!I52+OCTUBRE!F63+NOVIEMBRE!I12-NOVIEMBRE!C63-NOVIEMBRE!I52+NOVIEMBRE!F63+DICIEMBRE!I12-DICIEMBRE!C63-DICIEMBRE!I52+DICIEMBRE!F63","v":80000}]
[null,null,null,null,null,null,null,"Estatus:"]
[null,null,null,null,null,null,null,{"$f":"IF(H34<=6,\"Bajo\",IF(H34<=11,\"Medio\",\"Óptimo\"))","v":"Óptimo"},null,null,null,null,"Liquidez",null,{"$f":"+M6/N6","v":0.53846153846153844}]
[]
[null,null,null,null,null,null,null,"Avance:",{"$f":"COUNTIF('CHECKLIST '!G12:G26,TRUE)/COUNTA('CHECKLIST '!G12:G26)","v":0.8},null,null,null,"Endeudamiento",null,{"$f":"+N6/M6","v":1.8571428571428572}]
[null,null,null,null,null,null,null,"Pendiente:",{"$f":"100%-I29","v":0.19999999999999996}]
[]
[]
[]
[null,null,null,null,null,null,null,{"$f":"COUNTIF('CHECKLIST '!G12:G26,\"Verdadero\")","v":12}]
[]
[]
[]
[null,null,null,null,null,null,null,{"$f":"COUNTIF('CHECKLIST '!G12:G26,TRUE)/COUNTA('CHECKLIST '!G12:G26)","v":0.8},{"$f":"$H$38","v":0.8}]
[null,null,null,null,null,null,null,{"$f":"100%-H38","v":0.19999999999999996}]

{"sheet":"INSTRUCCIONES ","index":1,"n_rows":49,"n_cols":4,"rows_kept":49,"cut":false,"hidden":false,"merged":[[34,3,38,13],[42,3,43,13],[45,3,46,13],[48,3,50,13],[2,2,2,13],[5,3,9,13],[11,3,16,13],[19,3,26,13],[29,3,32,13],[40,3,40,13],[28,3,28,13]]}
[]
[]
[null,null,"📋 Instrucciones para usar tu Dashboard Financiero-Fiscal"]
[]
[]
[null,null,null,"Este dashboard está diseñado para que lleves un control mensual simple y claro del dinero de tu negocio o finanzas personales.\nTe servirá como una mini contabilidad, para saber: cuánto ganas, cuánto gastas, en qué inviertes, cuánto debes y cómo avanza tu situación mes a mes."]
[]
[]
[]
[]
[]
[null,null,null,"•\tEn las celdas de color gris, registra tus ingresos y gastos para determinar tu flujo de efectivo mensual.\n•\tEn la sección de activos y pasivos, coloca el valor de los bienes o deudas que adquieras como resultado del manejo de tu flujo de efectivo.\n-\tSi tu flujo es positivo: indica en qué operaciones inviertes o gastas.\n-\tSi tu flujo es negativo: anota de dónde proviene el financiamiento   (préstamos, créditos, etc.)."]
[]
[]
[]
[]
[]
[null,null,null,"El objetivo principal es que inviertas que incrementes tus activos, no que acumules deudas sino son en beneficio de tu negocio o persona."]
[]
[null,null,null,"1️⃣ Registro de ingresos y egresos (Flujo de efectivo mensual)\n•\tVe a la hoja del mes correspondiente.\n•\tIngresos: anota todo el dinero que entra a tu negocio (ventas, servicios, comisiones, ingresos extraordinarios).\n•\tEgresos: anota todo el dinero que sale (costos, gastos fijos, pagos de impuestos, nómina, compras, servicios, etc.).\n•\tLa plantilla calculará tu saldo neto del mes.\n💡 Tip: Anota cada ingreso o gasto lo más específico posible, en cada mes puedes encontrar ejemplos de como registrar tu información. Adáptala a tus necesidades."]
[]
[]
[]
[]
[]
[]
[]
[]
[null,null,null,"⚠️ Atención:\nSi deseas que el saldo de esta plantilla coincida con el saldo real de tu banco, únicamente en el mes donde comiences a registrar operaciones deberás agregar el concepto “Saldo inicial” y capturar el saldo final de tu estado de cuenta bancario del mes anterior.\n💡 Ejemplo:\nSi comienzas a registrar operaciones en abril, tu “Saldo inicial” será el saldo final de marzo.\nA partir de ese momento, el Dashboard reflejará automáticamente tu saldo bancario real conforme registres tus movimientos.\n📌 Importante:\nEste procedimiento solo debe realizarse una vez al iniciar el uso de la plantilla y posteriormente una vez al año, en el mes de enero, registrando como “Saldo inicial” el saldo final de diciembre del año anterior.\n💡 Nota:\nSi únicamente deseas utilizar la plantilla para controlar tu flujo de efectivo y no necesitas cuadrar los saldos con tu banco, puedes omitir el registro de “Saldo inicial”."]
[null,null,null,"2️⃣ Activos\n•\tAnota aquí todos los bienes, inversiones o recursos que tienen valor para tu negocio (por ejemplo: equipo, maquinaria, inventario, vehículos, inversiones financieras).\nSi vendes un activo o lo das de baja por venta, usa el renglón de disminución para restarlo y reflejar el valor actualizado.\n💡 Tip: Esto te ayuda a tener siempre un valor real de lo que tu negocio posee."]
[]
[]
[]
[]
[null,null,null,"3️⃣ Pasivos\n•\tAnota aquí todas las deudas y obligaciones financieras (préstamos, créditos, arrendamientos).\n•\tCada vez que hagas un pago, regístralo en el renglón de disminución para ver cómo se reduce tu deuda (amortización).\n💡 Tip: Monitorear tus pasivos te permite planear mejor tus pagos y evitar intereses innecesarios."]
[]
[]
[]
[]
[]
[null,null,null,"📝 Fondo de Ahorro\nEl fondo de ahorro es una sección dentro de tu Dashboard que te permite destinar parte de tus ingresos a una meta específica. Así, además de llevar control de tu flujo de efectivo y tu capital, podrás visualizar cómo vas construyendo un ahorro mensual de forma ordenada.\n•\tDefine tu meta en la hoja \"Ahorro” → escribe el monto y el objetivo (ejemplo: “Fondo de emergencias” o “Nueva computadora”).\n•\tRegistra tu ahorro mensual en la sección “Fondo de Ahorro” dentro del Flujo de Efectivo del mes correspondiente.\n•\tRevisa tu avance en la hoja “Ahorro” → ahí verás tu acumulado mes a mes y cuánto te falta para alcanzar tu meta.\nCuando alcances tu objetivo, limpia la información y comienza con tu siguiente meta.\n(Si al usar tu ahorro adquieres un activo, recuerda registrarlo en la columna de Activos del mes en que lo compraste).\n💡 Tip: Actualiza tu ahorro cada mes junto con tus ingresos y egresos para ver cómo impacta en tu capital."]
[]
[null,null,null,"4️⃣ Preguntas de análisis mensual\nAl final de cada mes, responde las preguntas que encontrarás en esta sección.\nTe ayudarán a reflexionar sobre tus resultados, detectar mejoras y tomar decisiones informadas."]
[]
[]
[null,null,null,"5️⃣ Checklist fiscal (editable)\n•\tRevisa las preguntas y puntos del checklist para evaluar tu situación fiscal.\n•\tMarca con ✔️ las obligaciones fiscales que ya cumpliste en el mes (por ejemplo: declaraciones mensuales, pago de impuestos, retenciones, IMSS, facturación).\n•\tAgrega o elimina ítems según tus obligaciones específicas.\n•\tUsa este apartado como recordatorio mensual para no pasar por alto ningún trámite o pago importante.\n💡 Tip: Mantener este checklist actualizado evitará multas, recargos y estrés fiscal."]
[]
[]
[null,null,null,"Observaciones:\n• Esta plantilla funciona como una minicontabilidad mensual y como un recordatorio fiscal (checklist) para tus obligaciones.\n• Puedes adaptarla para uso personal o de tu negocio, y agregar o modificar conceptos según tus necesidades.\n• Al final de cada mes, utiliza esta información para analizar tu situación y tomar mejores decisiones financieras y fiscales.\n• Toda la información que registres se reflejará en el Dashboard Financiero-Fiscal, permitiéndote visualizar tu panorama anual."]

{"sheet":"CHECKLIST ","index":2,"n_rows":34,"n_cols":7,"rows_kept":34,"cut":false,"hidden":false,"merged":[[31,4,32,6],[7,4,8,6],[26,4,27,6],[28,4,29,6],[30,4,30,6]]}
[]
[]
[]
[]
[]
[]
[]
[null,null,null,null,"Objetivo: Ayudarte a identificar si estás cumpliendo con tus obligaciones fiscales para evitar riesgos y sanciones."]
[]
[]
[null,null,null,null,"No.","Pregunta/Actividad","Sí"]
[null,null,null,null,1,"¿Estás dado/a de alta en el SAT con el régimen fiscal adecuado a tu actividad?",true]
[null,null,null,null,2,"¿Tienes habilitado tu Buzón Tributario con al menos dos medios de contacto válidos?",true]
[null,null,null,null,3,"¿Cuentas con tu e.firma vigente y respaldada en lugar seguro?",true]
[null,null,null,null,4,"¿Emites todas tus facturas electrónicas (CFDI) por los ingresos que generas?",true]
[null,null,null,null,5,"¿Solicitas facturas válidas por tus gastos deducibles? (deben cumplir con requisitos fiscales)",true]
[null,null,null,null,6,"¿Tus declaraciones mensuales y anual se han presentado en tiempo y forma?",true]
[null,null,null,null,7,"¿Sabes cuánto estás pagando en impuestos mensualmente y por qué conceptos?",true]
[null,null,null,null,8,"¿Tu contabilidad está organizada y actualizada (al menos un registro mensual)?",true]
[null,null,null,null,9,"¿Tienes identificados claramente tus ingresos, gastos, activos y pasivos?",true]
[null,null,null,null,10,"¿Cuentas con un control mensual de flujo de efectivo?",false]
[null,null,null,null,11,"¿Ahorras mensualmente para impuestos u otros objetivos financieros?",true]
[null,null,null,null,12,"¿Tienes una meta financiera definida y clara para tu negocio o vida personal?",true]
[null,null,null,null,13,"¿Guardas ordenadamente tus XML, acuses, declaraciones y documentos fiscales?",false]
[null,null,null,null,14,"¿Tienes calendarizadas tus fechas clave fiscales para evitar recargos o multas?",false]
[null,null,null,null,15,"¿Recibes asesoría contable o fiscal de forma periódica (aunque sea trimestral)?",true]
[null,null,null,null,"% de Cumpliento Fiscal"]
[]
[null,null,null,null,{"$f":"COUNTIF(G12:G26,\"Verdadero\")/COUNTA(G12:G26)","v":0.8}]
[]
[null,null,null,null,"Diagnóstico:"]
[null,null,null,null,{"$f":"IF(E34<=6,\"Alerta máxima\",IF(E34<=11,\"Área de mejora\",\"Cumplimiento sólido\"))","v":"Cumplimiento sólido"}]
[]
[null,null,null,null,{"$f":"COUNTIF(G12:G26,\"Verdadero\")","v":12}]

{"sheet":"ENERO","index":3,"n_rows":116,"n_cols":9,"rows_kept":116,"cut":false,"hidden":false,"merged":[[1,2,1,8],[3,3,3,8],[67,1,67,6],[115,1,131,5],[102,1,104,5],[73,1,74,6],[76,1,77,6],[79,1,80,6],[108,1,109,5],[111,1,112,5],[92,1,94,5],[51,8,53,8],[22,8,24,8]]}
[]
[null,null,"FLUJO DE EFECTIVO"]
[]
[null,null,"Nombre/Empresa:"]
[]
[]
[]
[]
[null,"Parte 1"]
[]
[null,"Ingresos",null,null,"Egresos",null,null,null,"Flujo Neto Mensual"]
[null,"Ingresos del mes","Monto",null,"Egresos del mes","Monto",null,null,{"$f":"C35 - F35","v":50000}]
[null,"Saldo inicial:",null,null,"Insumos",50000]
[null,"Ventas de productos o servicios",100000,null,"Sueldos"]
[null,"Ingresos por comisiones",null,null,"Servicios (luz, internet, etc.)"]
[null,"Ingresos por arrendamiento",0,null,"Papelería"]
[null,"Ingresos por regalías",null,null,"Gasolina"]
[null,"Intereses cobrados",null,null,"Suscripciones "]
[null,"Ingresos por instrumentos financieros ",null,null,"Honorarios profesionales "]
[null,"Ingresos adicionales (freelance, etc.)",null,null,"Renta"]
[null,"Otros ingresos",null,null,"Pago de intereses "]
[null,null,null,null,"Otros gastos del negocio"]
[null,null,null,null,"Impuestos y retenciones ",null,null,null,{"$f":"IF(I12<=0,\"¿De dónde proviene tu financiamiento?\",\"¿En qué vas a invertir este dinero?\")","v":"¿En qué vas a invertir este dinero?"}]
[null,null,null,null,"IMSS e INFONAVIT"]
[null,null,null,null,"IVA "]
[]
[]
[]
[]
[]
[]
[]
[]
[null,null,"Total Ingresos",null,null,"Total Egresos"]
[null,null,{"$f":"SUM(C13:C33)","v":100000},null,null,{"$f":"SUM(F13:F33)","v":50000}]
[]
[]
[]
[null,"Activos",null,null,"Pasivos",null,null,null,"Capital"]
[null,"Activos del mes ","Valor",null,"Pasivos del mes ","Valor",null,null,{"$f":"+C63-F63+I52","v":50000}]
[null,"Computadora",30000,null,"Créditos bancarios empresariales ",10000]
[null,"Automóvil ",null,null,"Créditos bancarios personales"]
[null,"Escritorio",null,null,"Hipotecas"]
[null,"Equipos, maquinaria o herramientas",null,null,"Tarjetas de crédito "]
[null,"Marcas o patentes ",null,null,"Deudas adquiridas con terceros "]
[null,"Inversiones (CETES, acciones, etc.)",10000,null,"Otras deudas"]
[null,"Propiedades (casas, oficinas, bodegas, etc.)"]
[null,"Otros activos"]
[null,"Disminución de activos",null,null,"Disminución de pasivos "]
[]
[null,null,null,null,null,null,null,null,"Fondo de Ahoro"]
[null,null,null,null,null,null,null,null,20000]
[]
[]
[]
[]
[]
[]
[]
[]
[]
[null,null,"Total Activos",null,null,"Total Pasivos"]
[null,null,{"$f":"SUM(C41:C61)-C49-C49","v":40000},null,null,{"$f":"SUM(F41:F61)-F49-F49","v":10000}]
[]
[]
[]
[null,"Parte 2"]
[null,"Análisis financiero mensual"]
[]
[null,"Instrucciones: Analiza la información de la parte 1. Reflexiona sobre tu flujo de efectivo y las decisiones que estás tomando."]
[]
[null,"🧠 1. Conciencia del uso del dinero"]
[null,"¿En qué rubros se va la mayor parte de tu dinero?"]
[]
[]
[null,"¿Cuáles gastos fueron realmente necesarios y cuáles podrías evitar el próximo mes?"]
[]
[]
[null,"¿Tienes gastos que puedes reducir sin afectar tu operación o bienestar?"]
[]
[]
[]
[null,"💡 2. Toma de decisiones"]
[null,"¿Tuviste excedente este mes? ¿Qué hiciste con él?"]
[]
[null,"Lo ahorré"]
[null,"Lo invertí"]
[null,"Lo reinvertí en mi negocio"]
[null,"Lo usé en gastos personales"]
[null,"No sé a dónde se fue"]
[null,"Otro (Especifíca)"]
[]
[]
[]
[]
[]
[null,"Si tuviste un déficit, ¿cómo lo resolviste?"]
[null,"Usé ahorros"]
[null,"Pedí prestado"]
[null,"Dejé de pagar algo"]
[null,"Otro (Especifíca)"]
[]
[]
[]
[]
[]
[null,"🎯 3. Planeación hacia el siguiente mes"]
[null,"¿Qué acción concreta vas a tomar para mejorar tu flujo de efectivo?"]
[null,"Ejemplo: aumentar ingresos, reducir un gasto, controlar mejor el efectivo, etc."]
[]
[null,"¿Qué metas financieras tienes para el próximo mes?"]
[]
[]
[]
[null,"📝 4. Espacio libre para anotaciones"]
[null,"Escribe lo que aprendiste este mes o tus objetivos financieros "]

{"sheet":"FEBRERO","index":4,"n_rows":116,"n_cols":9,"rows_kept":116,"cut":false,"hidden":false,"merged":[[115,1,131,5],[76,1,77,6],[79,1,80,6],[92,1,94,5],[102,1,104,5],[108,1,109,5],[111,1,112,5],[1,2,1,8],[3,3,3,8],[22,8,24,8],[51,8,53,8],[67,1,67,6],[73,1,74,6]]}
[]
[null,null,"FLUJO DE EFECTIVO"]
[]
[null,null,"Nombre/Empresa:"]
[]
[]
[]
[]
[null,"Parte 1"]
[]
[null,"Ingresos",null,null,"Egresos",null,null,null,"Flujo Neto Mensual"]
[null,"Ingresos del mes","Monto",null,"Egresos del mes","Monto",null,null,{"$f":"C35 - F35","v":-30000}]
[null,"Saldo inicial:",null,null,"Insumos"]
[null,"Ventas de productos o servicios",50000,null,"Sueldos",80000]
[null,"Ingresos por comisiones",null,null,"Servicios (luz, internet, etc.)"]
[null,"Ingresos por arrendamiento",null,null,"Papelería"]
[null,"Ingresos por regalías",null,null,"Gasolina"]
[null,"Intereses cobrados",null,null,"Suscripciones "]
[null,"Ingresos por instrumentos financieros ",null,null,"Honorarios profesionales "]
[null,"Ingresos adicionales (freelance, etc.)",null,null,"Renta"]
[null,"Otros ingresos",null,null,"Pago de intereses "]
[null,null,null,null,"Otros gastos del negocio"]
[null,null,null,null,"Impuestos y retenciones ",null,null,null,{"$f":"IF(I12<=0,\"¿De dónde proviene tu financiamiento?\",\"¿En qué vas a invertir este dinero?\")","v":"¿De dónde proviene tu financiamiento?"}]
[null,null,null,null,"IMSS e INFONAVIT"]
[null,null,null,null,"IVA "]
[]
[]
[]
[]
[]
[]
[]
[]
[null,null,"Total Ingresos",null,null,"Total Egresos"]
[null,null,{"$f":"SUM(C13:C33)","v":50000},null,null,{"$f":"SUM(F13:F33)","v":80000}]
[]
[]
[]
[null,"Activos",null,null,"Pasivos",null,null,null,"Capital"]
[null,"Activos del mes ","Valor",null,"Pasivos del mes ","Valor",null,null,{"$f":"+C63-F63+I52","v":-30000}]
[null,"Computadora",null,null,"Créditos bancarios empresariales ",30000]
[null,"Automóvil ",null,null,"Créditos bancarios personales"]
[null,"Escritorio",null,null,"Hipotecas"]
[null,"Equipos, maquinaria o herramientas",null,null,"Tarjetas de crédito "]
[null,"Marcas o patentes ",null,null,"Deudas adquiridas con terceros "]
[null,"Inversiones (CETES, acciones, etc.)",0,null,"Otras deudas"]
[null,"Propiedades (casas, oficinas, bodegas, etc.)"]
[null,"Otros activos"]
[null,"Disminución de activos",null,null,"Disminución de pasivos "]
[]
[null,null,null,null,null,null,null,null,"Fondo de Ahoro"]
[]
[]
[]
[]
[]
[]
[]
[]
[]
[]
[null,null,"Total Activos",null,null,"Total Pasivos"]
[null,null,{"$f":"SUM(C41:C61)-C49-C49","v":0},null,null,{"$f":"SUM(F41:F61)-F49-F49","v":30000}]
[]
[]
[]
[null,"Parte 2"]
[null,"Análisis financiero mensual"]
[]
[null,"Instrucciones: Analiza la información de la parte 1. Reflexiona sobre tu flujo de efectivo y las decisiones que estás tomando."]
[]
[null,"🧠 1. Conciencia del uso del dinero"]
[null,"¿En qué rubros se va la mayor parte de tu dinero?"]
[]
[]
[null,"¿Cuáles gastos fueron realmente necesarios y cuáles podrías evitar el próximo mes?"]
[]
[]
[null,"¿Tienes gastos que puedes reducir sin afectar tu operación o bienestar?"]
[]
[]
[]
[null,"💡 2. Toma de decisiones"]
[null,"¿Tuviste excedente este mes? ¿Qué hiciste con él?"]
[]
[null,"Lo ahorré"]
[null,"Lo invertí"]
[null,"Lo reinvertí en mi negocio"]
[null,"Lo usé en gastos personales"]
[null,"No sé a dónde se fue"]
[null,"Otro (Especifíca)"]
[]
[]
[]
[]
[]
[null,"Si tuviste un déficit, ¿cómo lo resolviste?"]
[null,"Usé ahorros"]
[null,"Pedí prestado"]
[null,"Dejé de pagar algo"]
[null,"Otro (Especifíca)"]
[]
[]
[]
[]
[]
[null,"🎯 3. Planeación hacia el siguiente mes"]
[null,"¿Qué acción concreta vas a tomar para mejorar tu flujo de efectivo?"]
[null,"Ejemplo: aumentar ingresos, reducir un gasto, controlar mejor el efectivo, etc."]
[]
[null,"¿Qué metas financieras tienes para el próximo mes?"]
[]
[]
[]
[null,"📝 4. Espacio libre para anotaciones"]
[null,"Escribe lo que aprendiste este mes o tus objetivos financieros "]

{"sheet":"MARZO","index":5,"n_rows":116,"n_cols":9,"rows_kept":116,"cut":false,"hidden":false,"merged":[[115,1,131,5],[76,1,77,6],[79,1,80,6],[92,1,94,5],[102,1,104,5],[108,1,109,5],[111,1,112,5],[1,2,1,8],[3,3,3,8],[22,8,24,8],[51,8,53,8],[67,1,67,6],[73,1,74,6]]}
[]
[null,null,"FLUJO DE EFECTIVO"]
[]
[null,null,"Nombre/Empresa:"]
[]
[]
[]
[]
[null,"Parte 1"]
[]
[null,"Ingresos",null,null,"Egresos",null,null,null,"Flujo Neto Mensual"]
[null,"Ingresos del mes","Monto",null,"Egresos del mes","Monto",null,null,{"$f":"C35 - F35","v":20000}]
[null,"Saldo inicial:",null,null,"Insumos"]
[null,"Ventas de productos o servicios",70000,null,"Sueldos",50000]
[null,"Ingresos por comisiones",null,null,"Servicios (luz, internet, etc.)"]
[null,"Ingresos por arrendamiento",null,null,"Papelería"]
[null,"Ingresos por regalías",null,null,"Gasolina"]
[null,"Intereses cobrados",null,null,"Suscripciones "]
[null,"Ingresos por instrumentos financieros ",null,null,"Honorarios profesionales "]
[null,"Ingresos adicionales (freelance, etc.)",null,null,"Renta"]
[null,"Otros ingresos",null,null,"Pago de intereses "]
[null,null,null,null,"Otros gastos del negocio"]
[null,null,null,null,"Impuestos y retenciones ",null,null,null,{"$f":"IF(I12<=0,\"¿De dónde proviene tu financiamiento?\",\"¿En qué vas a invertir este dinero?\")","v":"¿En qué vas a invertir este dinero?"}]
[null,null,null,null,"IMSS e INFONAVIT"]
[null,null,null,null,"IVA "]
[]
[]
[]
[]
[]
[]
[]
[]
[null,null,"Total Ingresos",null,null,"Total Egresos"]
[null,null,{"$f":"SUM(C13:C33)","v":70000},null,null,{"$f":"SUM(F13:F33)","v":50000}]
[]
[]
[]
[null,"Activos",null,null,"Pasivos",null,null,null,"Capital"]
[null,"Activos del mes ","Valor",null,"Pasivos del mes ","Valor",null,null,{"$f":"+C63-F63+I52","v":10000}]
[null,"Computadora",null,null,"Créditos bancarios empresariales "]
[null,"Automóvil ",null,null,"Créditos bancarios personales"]
[null,"Escritorio",null,null,"Hipotecas"]
[null,"Equipos, maquinaria o herramientas",null,null,"Tarjetas de crédito "]
[null,"Marcas o patentes ",null,null,"Deudas adquiridas con terceros "]
[null,"Inversiones (CETES, acciones, etc.)",0,null,"Otras deudas"]
[null,"Propiedades (casas, oficinas, bodegas, etc.)"]
[null,"Otros activos"]
[null,"Disminución de activos",null,null,"Disminución de pasivos ",10000]
[]
[null,null,null,null,null,null,null,null,"Fondo de Ahoro"]
[]
[]
[]
[]
[]
[]
[]
[]
[]
[]
[null,null,"Total Activos",null,null,"Total Pasivos"]
[null,null,{"$f":"SUM(C41:C61)-C49-C49","v":0},null,null,{"$f":"SUM(F41:F61)-F49-F49","v":-10000}]
[]
[]
[]
[null,"Parte 2"]
[null,"Análisis financiero mensual"]
[]
[null,"Instrucciones: Analiza la información de la parte 1. Reflexiona sobre tu flujo de efectivo y las decisiones que estás tomando."]
[]
[null,"🧠 1. Conciencia del uso del dinero"]
[null,"¿En qué rubros se va la mayor parte de tu dinero?"]
[]
[]
[null,"¿Cuáles gastos fueron realmente necesarios y cuáles podrías evitar el próximo mes?"]
[]
[]
[null,"¿Tienes gastos que puedes reducir sin afectar tu operación o bienestar?"]
[]
[]
[]
[null,"💡 2. Toma de decisiones"]
[null,"¿Tuviste excedente este mes? ¿Qué hiciste con él?"]
[]
[null,"Lo ahorré"]
[null,"Lo invertí"]
[null,"Lo reinvertí en mi negocio"]
[null,"Lo usé en gastos personales"]
[null,"No sé a dónde se fue"]
[null,"Otro (Especifíca)"]
[]
[]
[]
[]
[]
[null,"Si tuviste un déficit, ¿cómo lo resolviste?"]
[null,"Usé ahorros"]
[null,"Pedí prestado"]
[null,"Dejé de pagar algo"]
[null,"Otro (Especifíca)"]
[]
[]
[]
[]
[]
[null,"🎯 3. Planeación hacia el siguiente mes"]
[null,"¿Qué acción concreta vas a tomar para mejorar tu flujo de efectivo?"]
[null,"Ejemplo: aumentar ingresos, reducir un gasto, controlar mejor el efectivo, etc."]
[]
[null,"¿Qué metas financieras tienes para el próximo mes?"]
[]
[]
[]
[null,"📝 4. Espacio libre para anotaciones"]
[null,"Escribe lo que aprendiste este mes o tus objetivos financieros "]

{"sheet":"ABRIL","index":6,"n_rows":116,"n_cols":9,"rows_kept":116,"cut":false,"hidden":false,"merged":[[115,1,131,5],[76,1,77,6],[79,1,80,6],[92,1,94,5],[102,1,104,5],[108,1,109,5],[111,1,112,5],[1,2,1,8],[3,3,3,8],[22,8,24,8],[51,8,53,8],[67,1,67,6],[73,1,74,6]]}
[]
[null,null,"FLUJO DE EFECTIVO"]
[]
[null,null,"Nombre/Empresa:"]
[]
[]
[]
[]
[null,"Parte 1"]
[]
[null,"Ingresos",null,null,"Egresos",null,null,null,"Flujo Neto Mensual"]
[null,"Ingresos del mes","Monto",null,"Egresos del mes","Monto",null,null,{"$f":"C35 - F35","v":60000}]
[null,"Saldo inicial:",null,null,"Insumos"]
[null,"Ventas de productos o servicios",120000,null,"Sueldos",60000]
[null,"Ingresos por comisiones",null,null,"Servicios (luz, internet, etc.)"]
[null,"Ingresos por arrendamiento",null,null,"Papelería"]
[null,"Ingresos por regalías",null,null,"Gasolina"]
[null,"Intereses cobrados",null,null,"Suscripciones "]
[null,"Ingresos por instrumentos financieros ",null,null,"Honorarios profesionales "]
[null,"Ingresos adicionales (freelance, etc.)",null,null,"Renta"]
[null,"Otros ingresos",null,null,"Pago de intereses "]
[null,null,null,null,"Otros gastos del negocio"]
[null,null,null,null,"Impuestos y retenciones ",null,null,null,{"$f":"IF(I12<=0,\"¿De dónde proviene tu financiamiento?\",\"¿En qué vas a invertir este dinero?\")","v":"¿En qué vas a invertir este dinero?"}]
[null,null,null,null,"IMSS e INFONAVIT"]
[null,null,null,null,"IVA "]
[]
[]
[]
[]
[]
[]
[]
[]
[null,null,"Total Ingresos",null,null,"Total Egresos"]
[null,null,{"$f":"SUM(C13:C33)","v":120000},null,null,{"$f":"SUM(F13:F33)","v":60000}]
[]
[]
[]
[null,"Activos",null,null,"Pasivos",null,null,null,"Capital"]
[null,"Activos del mes ","Valor",null,"Pasivos del mes ","Valor",null,null,{"$f":"+C63-F63+I52","v":50000}]
[null,"Computadora",null,null,"Créditos bancarios empresariales "]
[null,"Automóvil ",null,null,"Créditos bancarios personales"]
[null,"Escritorio",null,null,"Hipotecas"]
[null,"Equipos, maquinaria o herramientas",null,null,"Tarjetas de crédito "]
[null,"Marcas o patentes ",null,null,"Deudas adquiridas con terceros "]
[null,"Inversiones (CETES, acciones, etc.)",30000,null,"Otras deudas"]
[null,"Propiedades (casas, oficinas, bodegas, etc.)"]
[null,"Otros activos"]
[null,"Disminución de activos",null,null,"Disminución de pasivos "]
[]
[null,null,null,null,null,null,null,null,"Fondo de Ahoro"]
[null,null,null,null,null,null,null,null,20000]
[]
[]
[]
[]
[]
[]
[]
[]
[]
[null,null,"Total Activos",null,null,"Total Pasivos"]
[null,null,{"$f":"SUM(C41:C61)-C49-C49","v":30000},null,null,{"$f":"SUM(F41:F61)-F49-F49","v":0}]
[]
[]
[]
[null,"Parte 2"]
[null,"Análisis financiero mensual"]
[]
[null,"Instrucciones: Analiza la información de la parte 1. Reflexiona sobre tu flujo de efectivo y las decisiones que estás tomando."]
[]
[null,"🧠 1. Conciencia del uso del dinero"]
[null,"¿En qué rubros se va la mayor parte de tu dinero?"]
[]
[]
[null,"¿Cuáles gastos fueron realmente necesarios y cuáles podrías evitar el próximo mes?"]
[]
[]
[null,"¿Tienes gastos que puedes reducir sin afectar tu operación o bienestar?"]
[]
[]
[]
[null,"💡 2. Toma de decisiones"]
[null,"¿Tuviste excedente este mes? ¿Qué hiciste con él?"]
[]
[null,"Lo ahorré"]
[null,"Lo invertí"]
[null,"Lo reinvertí en mi negocio"]
[null,"Lo usé en gastos personales"]
[null,"No sé a dónde se fue"]
[null,"Otro (Especifíca)"]
[]
[]
[]
[]
[]
[null,"Si tuviste un déficit, ¿cómo lo resolviste?"]
[null,"Usé ahorros"]
[null,"Pedí prestado"]
[null,"Dejé de pagar algo"]
[null,"Otro (Especifíca)"]
[]
[]
[]
[]
[]
[null,"🎯 3. Planeación hacia el siguiente mes"]
[null,"¿Qué acción concreta vas a tomar para mejorar tu flujo de efectivo?"]
[null,"Ejemplo: aumentar ingresos, reducir un gasto, controlar mejor el efectivo, etc."]
[]
[null,"¿Qué metas financieras tienes para el próximo mes?"]
[]
[]
[]
[null,"📝 4. Espacio libre para anotaciones"]
[null,"Escribe lo que aprendiste este mes o tus objetivos financieros "]

{"sheet":"MAYO","index":7,"n_rows":116,"n_cols":9,"rows_kept":116,"cut":false,"hidden":false,"merged":[[115,1,131,5],[76,1,77,6],[79,1,80,6],[92,1,94,5],[102,1,104,5],[108,1,109,5],[111,1,112,5],[1,2,1,8],[3,3,3,8],[22,8,24,8],[51,8,53,8],[67,1,67,6],[73,1,74,6]]}
[]
[null,null,"FLUJO DE EFECTIVO"]
[]
[null,null,"Nombre/Empresa:"]
[]
[]
[]
[]
[null,"Parte 1"]
[]
[null,"Ingresos",null,null,"Egresos",null,null,null,"Flujo Neto Mensual"]
[null,"Ingresos del mes","Monto",null,"Egresos del mes","Monto",null,null,{"$f":"C35 - F35","v":-40000}]
[null,"Saldo inicial:",null,null,"Insumos"]
[null,"Ventas de productos o servicios",40000,null,"Sueldos",80000]
[null,"Ingresos por comisiones",null,null,"Servicios (luz, internet, etc.)"]
[null,"Ingresos por arrendamiento",null,null,"Papelería"]
[null,"Ingresos por regalías",null,null,"Gasolina"]
[null,"Intereses cobrados",null,null,"Suscripciones "]
[null,"Ingresos por instrumentos financieros ",null,null,"Honorarios profesionales "]
[null,"Ingresos adicionales (freelance, etc.)",null,null,"Renta"]
[null,"Otros ingresos",null,null,"Pago de intereses "]
[null,null,null,null,"Otros gastos del negocio"]
[null,null,null,null,"Impuestos y retenciones ",null,null,null,{"$f":"IF(I12<=0,\"¿De dónde proviene tu financiamiento?\",\"¿En qué vas a invertir este dinero?\")","v":"¿De dónde proviene tu financiamiento?"}]
[null,null,null,null,"IMSS e INFONAVIT"]
[null,null,null,null,"IVA "]
[]
[]
[]
[]
[]
[]
[]
[]
[null,null,"Total Ingresos",null,null,"Total Egresos"]
[null,null,{"$f":"SUM(C13:C33)","v":40000},null,null,{"$f":"SUM(F13:F33)","v":80000}]
[]
[]
[]
[null,"Activos",null,null,"Pasivos",null,null,null,"Capital"]
[null,"Activos del mes ","Valor",null,"Pasivos del mes ","Valor",null,null,{"$f":"+C63-F63+I52","v":-100000}]
[null,"Computadora",null,null,"Créditos bancarios empresariales ",100000]
[null,"Automóvil ",null,null,"Créditos bancarios personales"]
[null,"Escritorio",null,null,"Hipotecas"]
[null,"Equipos, maquinaria o herramientas",null,null,"Tarjetas de crédito "]
[null,"Marcas o patentes ",null,null,"Deudas adquiridas con terceros "]
[null,"Inversiones (CETES, acciones, etc.)",null,null,"Otras deudas"]
[null,"Propiedades (casas, oficinas, bodegas, etc.)"]
[null,"Otros activos"]
[null,"Disminución de activos",null,null,"Disminución de pasivos "]
[]
[null,null,null,null,null,null,null,null,"Fondo de Ahoro"]
[]
[]
[]
[]
[]
[]
[]
[]
[]
[]
[null,null,"Total Activos",null,null,"Total Pasivos"]
[null,null,{"$f":"SUM(C41:C61)-C49-C49","v":0},null,null,{"$f":"SUM(F41:F61)-F49-F49","v":100000}]
[]
[]
[]
[null,"Parte 2"]
[null,"Análisis financiero mensual"]
[]
[null,"Instrucciones: Analiza la información de la parte 1. Reflexiona sobre tu flujo de efectivo y las decisiones que estás tomando."]
[]
[null,"🧠 1. Conciencia del uso del dinero"]
[null,"¿En qué rubros se va la mayor parte de tu dinero?"]
[]
[]
[null,"¿Cuáles gastos fueron realmente necesarios y cuáles podrías evitar el próximo mes?"]
[]
[]
[null,"¿Tienes gastos que puedes reducir sin afectar tu operación o bienestar?"]
[]
[]
[]
[null,"💡 2. Toma de decisiones"]
[null,"¿Tuviste excedente este mes? ¿Qué hiciste con él?"]
[]
[null,"Lo ahorré"]
[null,"Lo invertí"]
[null,"Lo reinvertí en mi negocio"]
[null,"Lo usé en gastos personales"]
[null,"No sé a dónde se fue"]
[null,"Otro (Especifíca)"]
[]
[]
[]
[]
[]
[null,"Si tuviste un déficit, ¿cómo lo resolviste?"]
[null,"Usé ahorros"]
[null,"Pedí prestado"]
[null,"Dejé de pagar algo"]
[null,"Otro (Especifíca)"]
[]
[]
[]
[]
[]
[null,"🎯 3. Planeación hacia el siguiente mes"]
[null,"¿Qué acción concreta vas a tomar para mejorar tu flujo de efectivo?"]
[null,"Ejemplo: aumentar ingresos, reducir un gasto, controlar mejor el efectivo, etc."]
[]
[null,"¿Qué metas financieras tienes para el próximo mes?"]
[]
[]
[]
[null,"📝 4. Espacio libre para anotaciones"]
[null,"Escribe lo que aprendiste este mes o tus objetivos financieros "]

{"sheet":"JUNIO","index":8,"n_rows":116,"n_cols":9,"rows_kept":116,"cut":false,"hidden":false,"merged":[[115,1,131,5],[76,1,77,6],[79,1,80,6],[92,1,94,5],[102,1,104,5],[108,1,109,5],[111,1,112,5],[1,2,1,8],[3,3,3,8],[22,8,24,8],[51,8,53,8],[67,1,67,6],[73,1,74,6]]}
[]
[null,null,"FLUJO DE EFECTIVO"]
[]
[null,null,"Nombre/Empresa:"]
[]
[]
[]
[]
[null,"Parte 1"]
[]
[null,"Ingresos",null,null,"Egresos",null,null,null,"Flujo Neto Mensual"]
[null,"Ingresos del mes","Monto",null,"Egresos del mes","Monto",null,null,{"$f":"C35 - F35","v":0}]
[null,"Saldo inicial:",null,null,"Insumos"]
[null,"Ventas de productos o servicios",null,null,"Sueldos"]
[null,"Ingresos por comisiones",null,null,"Servicios (luz, internet, etc.)"]
[null,"Ingresos por arrendamiento",0,null,"Papelería"]
[null,"Ingresos por regalías",null,null,"Gasolina"]
[null,"Intereses cobrados",null,null,"Suscripciones "]
[null,"Ingresos por instrumentos financieros ",null,null,"Honorarios profesionales "]
[null,"Ingresos adicionales (freelance, etc.)",null,null,"Renta"]
[null,"Otros ingresos",null,null,"Pago de intereses "]
[null,null,null,null,"Otros gastos del negocio"]
[null,null,null,null,"Impuestos y retenciones ",null,null,null,{"$f":"IF(I12<=0,\"¿De dónde proviene tu financiamiento?\",\"¿En qué vas a invertir este dinero?\")","v":"¿De dónde proviene tu financiamiento?"}]
[null,null,null,null,"IMSS e INFONAVIT"]
[null,null,null,null,"IVA "]
[]
[]
[]
[]
[]
[]
[]
[]
[null,null,"Total Ingresos",null,null,"Total Egresos"]
[null,null,{"$f":"SUM(C13:C33)","v":0},null,null,{"$f":"SUM(F13:F33)","v":0}]
[]
[]
[]
[null,"Activos",null,null,"Pasivos",null,null,null,"Capital"]
[null,"Activos del mes ","Valor",null,"Pasivos del mes ","Valor",null,null,{"$f":"+C63-F63+I52","v":0}]
[null,"Computadora",null,null,"Créditos bancarios empresariales "]
[null,"Automóvil ",null,null,"Créditos bancarios personales"]
[null,"Escritorio",null,null,"Hipotecas"]
[null,"Equipos, maquinaria o herramientas",null,null,"Tarjetas de crédito "]
[null,"Marcas o patentes ",null,null,"Deudas adquiridas con terceros "]
[null,"Inversiones (CETES, acciones, etc.)",0,null,"Otras deudas"]
[null,"Propiedades (casas, oficinas, bodegas, etc.)"]
[null,"Otros activos"]
[null,"Disminución de activos",null,null,"Disminución de pasivos "]
[]
[null,null,null,null,null,null,null,null,"Fondo de Ahoro"]
[]
[]
[]
[]
[]
[]
[]
[]
[]
[]
[null,null,"Total Activos",null,null,"Total Pasivos"]
[null,null,{"$f":"SUM(C41:C61)-C49-C49","v":0},null,null,{"$f":"SUM(F41:F61)-F49-F49","v":0}]
[]
[]
[]
[null,"Parte 2"]
[null,"Análisis financiero mensual"]
[]
[null,"Instrucciones: Analiza la información de la parte 1. Reflexiona sobre tu flujo de efectivo y las decisiones que estás tomando."]
[]
[null,"🧠 1. Conciencia del uso del dinero"]
[null,"¿En qué rubros se va la mayor parte de tu dinero?"]
[]
[]
[null,"¿Cuáles gastos fueron realmente necesarios y cuáles podrías evitar el próximo mes?"]
[]
[]
[null,"¿Tienes gastos que puedes reducir sin afectar tu operación o bienestar?"]
[]
[]
[]
[null,"💡 2. Toma de decisiones"]
[null,"¿Tuviste excedente este mes? ¿Qué hiciste con él?"]
[]
[null,"Lo ahorré"]
[null,"Lo invertí"]
[null,"Lo reinvertí en mi negocio"]
[null,"Lo usé en gastos personales"]
[null,"No sé a dónde se fue"]
[null,"Otro (Especifíca)"]
[]
[]
[]
[]
[]
[null,"Si tuviste un déficit, ¿cómo lo resolviste?"]
[null,"Usé ahorros"]
[null,"Pedí prestado"]
[null,"Dejé de pagar algo"]
[null,"Otro (Especifíca)"]
[]
[]
[]
[]
[]
[null,"🎯 3. Planeación hacia el siguiente mes"]
[null,"¿Qué acción concreta vas a tomar para mejorar tu flujo de efectivo?"]
[null,"Ejemplo: aumentar ingresos, reducir un gasto, controlar mejor el efectivo, etc."]
[]
[null,"¿Qué metas financieras tienes para el próximo mes?"]
[]
[]
[]
[null,"📝 4. Espacio libre para anotaciones"]
[null,"Escribe lo que aprendiste este mes o tus objetivos financieros "]

{"sheet":"JULIO","index":9,"n_rows":116,"n_cols":9,"rows_kept":116,"cut":false,"hidden":false,"merged":[[115,1,131,5],[76,1,77,6],[79,1,80,6],[92,1,94,5],[102,1,104,5],[108,1,109,5],[111,1,112,5],[1,2,1,8],[3,3,3,8],[22,8,24,8],[51,8,53,8],[67,1,67,6],[73,1,74,6]]}
[]
[null,null,"FLUJO DE EFECTIVO"]
[]
[null,null,"Nombre/Empresa:"]
[]
[]
[]
[]
[null,"Parte 1"]
[]
[null,"Ingresos",null,null,"Egresos",null,null,null,"Flujo Neto Mensual"]
[null,"Ingresos del mes","Monto",null,"Egresos del mes","Monto",null,null,{"$f":"C35 - F35","v":0}]
[null,"Saldo inicial:",null,null,"Insumos"]
[null,"Ventas de productos o servicios",null,null,"Sueldos"]
[null,"Ingresos por comisiones",null,null,"Servicios (luz, internet, etc.)"]
[null,"Ingresos por arrendamiento",0,null,"Papelería"]
[null,"Ingresos por regalías",null,null,"Gasolina"]
[null,"Intereses cobrados",null,null,"Suscripciones "]
[null,"Ingresos por instrumentos financieros ",null,null,"Honorarios profesionales "]
[null,"Ingresos adicionales (freelance, etc.)",null,null,"Renta"]
[null,"Otros ingresos",null,null,"Pago de intereses "]
[null,null,null,null,"Otros gastos del negocio"]
[null,null,null,null,"Impuestos y retenciones ",null,null,null,{"$f":"IF(I12<=0,\"¿De dónde proviene tu financiamiento?\",\"¿En qué vas a invertir este dinero?\")","v":"¿De dónde proviene tu financiamiento?"}]
[null,null,null,null,"IMSS e INFONAVIT"]
[null,null,null,null,"IVA "]
[]
[]
[]
[]
[]
[]
[]
[]
[null,null,"Total Ingresos",null,null,"Total Egresos"]
[null,null,{"$f":"SUM(C13:C33)","v":0},null,null,{"$f":"SUM(F13:F33)","v":0}]
[]
[]
[]
[null,"Activos",null,null,"Pasivos",null,null,null,"Capital"]
[null,"Activos del mes ","Valor",null,"Pasivos del mes ","Valor",null,null,{"$f":"+C63-F63+I52","v":0}]
[null,"Computadora",null,null,"Créditos bancarios empresariales "]
[null,"Automóvil ",null,null,"Créditos bancarios personales"]
[null,"Escritorio",null,null,"Hipotecas"]
[null,"Equipos, maquinaria o herramientas",null,null,"Tarjetas de crédito "]
[null,"Marcas o patentes ",null,null,"Deudas adquiridas con terceros "]
[null,"Inversiones (CETES, acciones, etc.)",0,null,"Otras deudas"]
[null,"Propiedades (casas, oficinas, bodegas, etc.)"]
[null,"Otros activos"]
[null,"Disminución de activos",null,null,"Disminución de pasivos "]
[]
[null,null,null,null,null,null,null,null,"Fondo de Ahoro"]
[]
[]
[]
[]
[]
[]
[]
[]
[]
[]
[null,null,"Total Activos",null,null,"Total Pasivos"]
[null,null,{"$f":"SUM(C41:C61)-C49-C49","v":0},null,null,{"$f":"SUM(F41:F61)-F49-F49","v":0}]
[]
[]
[]
[null,"Parte 2"]
[null,"Análisis financiero mensual"]
[]
[null,"Instrucciones: Analiza la información de la parte 1. Reflexiona sobre tu flujo de efectivo y las decisiones que estás tomando."]
[]
[null,"🧠 1. Conciencia del uso del dinero"]
[null,"¿En qué rubros se va la mayor parte de tu dinero?"]
[]
[]
[null,"¿Cuáles gastos fueron realmente necesarios y cuáles podrías evitar el próximo mes?"]
[]
[]
[null,"¿Tienes gastos que puedes reducir sin afectar tu operación o bienestar?"]
[]
[]
[]
[null,"💡 2. Toma de decisiones"]
[null,"¿Tuviste excedente este mes? ¿Qué hiciste con él?"]
[]
[null,"Lo ahorré"]
[null,"Lo invertí"]
[null,"Lo reinvertí en mi negocio"]
[null,"Lo usé en gastos personales"]
[null,"No sé a dónde se fue"]
[null,"Otro (Especifíca)"]
[]
[]
[]
[]
[]
[null,"Si tuviste un déficit, ¿cómo lo resolviste?"]
[null,"Usé ahorros"]
[null,"Pedí prestado"]
[null,"Dejé de pagar algo"]
[null,"Otro (Especifíca)"]
[]
[]
[]
[]
[]
[null,"🎯 3. Planeación hacia el siguiente mes"]
[null,"¿Qué acción concreta vas a tomar para mejorar tu flujo de efectivo?"]
[null,"Ejemplo: aumentar ingresos, reducir un gasto, controlar mejor el efectivo, etc."]
[]
[null,"¿Qué metas financieras tienes para el próximo mes?"]
[]
[]
[]
[null,"📝 4. Espacio libre para anotaciones"]
[null,"Escribe lo que aprendiste este mes o tus objetivos financieros "]

{"sheet":"AGOSTO","index":10,"n_rows":116,"n_cols":9,"rows_kept":116,"cut":false,"hidden":false,"merged":[[115,1,131,5],[76,1,77,6],[79,1,80,6],[92,1,94,5],[102,1,104,5],[108,1,109,5],[111,1,112,5],[1,2,1,8],[3,3,3,8],[22,8,24,8],[51,8,53,8],[67,1,67,6],[73,1,74,6]]}
[]
[null,null,"FLUJO DE EFECTIVO"]
[]
[null,null,"Nombre/Empresa:"]
[]
[]
[]
[]
[null,"Parte 1"]
[]
[null,"Ingresos",null,null,"Egresos",null,null,null,"Flujo Neto Mensual"]
[null,"Ingresos del mes","Monto",null,"Egresos del mes","Monto",null,null,{"$f":"C35 - F35","v":0}]
[null,"Saldo inicial:",null,null,"Insumos"]
[null,"Ventas de productos o servicios",null,null,"Sueldos"]
[null,"Ingresos por comisiones",null,null,"Servicios (luz, internet, etc.)"]
[null,"Ingresos por arrendamiento",null,null,"Papelería"]
[null,"Ingresos por regalías",null,null,"Gasolina"]
[null,"Intereses cobrados",null,null,"Suscripciones "]
[null,"Ingresos por instrumentos financieros ",null,null,"Honorarios profesionales "]
[null,"Ingresos adicionales (freelance, etc.)",null,null,"Renta"]
[null,"Otros ingresos",null,null,"Pago de intereses "]
[null,null,null,null,"Otros gastos del negocio"]
[null,null,null,null,"Impuestos y retenciones ",null,null,null,{"$f":"IF(I12<=0,\"¿De dónde proviene tu financiamiento?\",\"¿En qué vas a invertir este dinero?\")","v":"¿De dónde proviene tu financiamiento?"}]
[null,null,null,null,"IMSS e INFONAVIT"]
[null,null,null,null,"IVA "]
[]
[]
[]
[]
[]
[]
[]
[]
[null,null,"Total Ingresos",null,null,"Total Egresos"]
[null,null,{"$f":"SUM(C13:C33)","v":0},null,null,{"$f":"SUM(F13:F33)","v":0}]
[]
[]
[]
[null,"Activos",null,null,"Pasivos",null,null,null,"Capital"]
[null,"Activos del mes ","Valor",null,"Pasivos del mes ","Valor",null,null,{"$f":"+C63-F63+I52","v":0}]
[null,"Computadora",null,null,"Créditos bancarios empresariales "]
[null,"Automóvil ",null,null,"Créditos bancarios personales"]
[null,"Escritorio",null,null,"Hipotecas"]
[null,"Equipos, maquinaria o herramientas",null,null,"Tarjetas de crédito "]
[null,"Marcas o patentes ",null,null,"Deudas adquiridas con terceros "]
[null,"Inversiones (CETES, acciones, etc.)",null,null,"Otras deudas"]
[null,"Propiedades (casas, oficinas, bodegas, etc.)"]
[null,"Otros activos"]
[null,"Disminución de activos",null,null,"Disminución de pasivos "]
[]
[null,null,null,null,null,null,null,null,"Fondo de Ahoro"]
[]
[]
[]
[]
[]
[]
[]
[]
[]
[]
[null,null,"Total Activos",null,null,"Total Pasivos"]
[null,null,{"$f":"SUM(C41:C61)-C49-C49","v":0},null,null,{"$f":"SUM(F41:F61)-F49-F49","v":0}]
[]
[]
[]
[null,"Parte 2"]
[null,"Análisis financiero mensual"]
[]
[null,"Instrucciones: Analiza la información de la parte 1. Reflexiona sobre tu flujo de efectivo y las decisiones que estás tomando."]
[]
[null,"🧠 1. Conciencia del uso del dinero"]
[null,"¿En qué rubros se va la mayor parte de tu dinero?"]
[]
[]
[null,"¿Cuáles gastos fueron realmente necesarios y cuáles podrías evitar el próximo mes?"]
[]
[]
[null,"¿Tienes gastos que puedes reducir sin afectar tu operación o bienestar?"]
[]
[]
[]
[null,"💡 2. Toma de decisiones"]
[null,"¿Tuviste excedente este mes? ¿Qué hiciste con él?"]
[]
[null,"Lo ahorré"]
[null,"Lo invertí"]
[null,"Lo reinvertí en mi negocio"]
[null,"Lo usé en gastos personales"]
[null,"No sé a dónde se fue"]
[null,"Otro (Especifíca)"]
[]
[]
[]
[]
[]
[null,"Si tuviste un déficit, ¿cómo lo resolviste?"]
[null,"Usé ahorros"]
[null,"Pedí prestado"]
[null,"Dejé de pagar algo"]
[null,"Otro (Especifíca)"]
[]
[]
[]
[]
[]
[null,"🎯 3. Planeación hacia el siguiente mes"]
[null,"¿Qué acción concreta vas a tomar para mejorar tu flujo de efectivo?"]
[null,"Ejemplo: aumentar ingresos, reducir un gasto, controlar mejor el efectivo, etc."]
[]
[null,"¿Qué metas financieras tienes para el próximo mes?"]
[]
[]
[]
[null,"📝 4. Espacio libre para anotaciones"]
[null,"Escribe lo que aprendiste este mes o tus objetivos financieros "]

{"sheet":"SEPTIEMBRE","index":11,"n_rows":116,"n_cols":9,"rows_kept":116,"cut":false,"hidden":false,"merged":[[115,1,131,5],[76,1,77,6],[79,1,80,6],[92,1,94,5],[102,1,104,5],[108,1,109,5],[111,1,112,5],[1,2,1,8],[3,3,3,8],[22,8,24,8],[51,8,53,8],[67,1,67,6],[73,1,74,6]]}
[]
[null,null,"FLUJO DE EFECTIVO"]
[]
[null,null,"Nombre/Empresa:"]
[]
[]
[]
[]
[null,"Parte 1"]
[]
[null,"Ingresos",null,null,"Egresos",null,null,null,"Flujo Neto Mensual"]
[null,"Ingresos del mes","Monto",null,"Egresos del mes","Monto",null,null,{"$f":"C35 - F35","v":0}]
[null,"Saldo inicial:",null,null,"Insumos"]
[null,"Ventas de productos o servicios",null,null,"Sueldos"]
[null,"Ingresos por comisiones",null,null,"Servicios (luz, internet, etc.)"]
[null,"Ingresos por arrendamiento",null,null,"Papelería"]
[null,"Ingresos por regalías",null,null,"Gasolina"]
[null,"Intereses cobrados",null,null,"Suscripciones "]
[null,"Ingresos por instrumentos financieros ",null,null,"Honorarios profesionales "]
[null,"Ingresos adicionales (freelance, etc.)",null,null,"Renta"]
[null,"Otros ingresos",null,null,"Pago de intereses "]
[null,null,null,null,"Otros gastos del negocio"]
[null,null,null,null,"Impuestos y retenciones ",null,null,null,{"$f":"IF(I12<=0,\"¿De dónde proviene tu financiamiento?\",\"¿En qué vas a invertir este dinero?\")","v":"¿De dónde proviene tu financiamiento?"}]
[null,null,null,null,"IMSS e INFONAVIT"]
[null,null,null,null,"IVA "]
[]
[]
[]
[]
[]
[]
[]
[]
[null,null,"Total Ingresos",null,null,"Total Egresos"]
[null,null,{"$f":"SUM(C13:C33)","v":0},null,null,{"$f":"SUM(F13:F33)","v":0}]
[]
[]
[]
[null,"Activos",null,null,"Pasivos",null,null,null,"Capital"]
[null,"Activos del mes ","Valor",null,"Pasivos del mes ","Valor",null,null,{"$f":"+C63-F63+I52","v":0}]
[null,"Computadora",null,null,"Créditos bancarios empresariales "]
[null,"Automóvil ",null,null,"Créditos bancarios personales"]
[null,"Escritorio",null,null,"Hipotecas"]
[null,"Equipos, maquinaria o herramientas",null,null,"Tarjetas de crédito "]
[null,"Marcas o patentes ",null,null,"Deudas adquiridas con terceros "]
[null,"Inversiones (CETES, acciones, etc.)",null,null,"Otras deudas"]
[null,"Propiedades (casas, oficinas, bodegas, etc.)"]
[null,"Otros activos"]
[null,"Disminución de activos",null,null,"Disminución de pasivos "]
[]
[null,null,null,null,null,null,null,null,"Fondo de Ahoro"]
[]
[]
[]
[]
[]
[]
[]
[]
[]
[]
[null,null,"Total Activos",null,null,"Total Pasivos"]
[null,null,{"$f":"SUM(C41:C61)-C49-C49","v":0},null,null,{"$f":"SUM(F41:F61)-F49-F49","v":0}]
[]
[]
[]
[null,"Parte 2"]
[null,"Análisis financiero mensual"]
[]
[null,"Instrucciones: Analiza la información de la parte 1. Reflexiona sobre tu flujo de efectivo y las decisiones que estás tomando."]
[]
[null,"🧠 1. Conciencia del uso del dinero"]
[null,"¿En qué rubros se va la mayor parte de tu dinero?"]
[]
[]
[null,"¿Cuáles gastos fueron realmente necesarios y cuáles podrías evitar el próximo mes?"]
[]
[]
[null,"¿Tienes gastos que puedes reducir sin afectar tu operación o bienestar?"]
[]
[]
[]
[null,"💡 2. Toma de decisiones"]
[null,"¿Tuviste excedente este mes? ¿Qué hiciste con él?"]
[]
[null,"Lo ahorré"]
[null,"Lo invertí"]
[null,"Lo reinvertí en mi negocio"]
[null,"Lo usé en gastos personales"]
[null,"No sé a dónde se fue"]
[null,"Otro (Especifíca)"]
[]
[]
[]
[]
[]
[null,"Si tuviste un déficit, ¿cómo lo resolviste?"]
[null,"Usé ahorros"]
[null,"Pedí prestado"]
[null,"Dejé de pagar algo"]
[null,"Otro (Especifíca)"]
[]
[]
[]
[]
[]
[null,"🎯 3. Planeación hacia el siguiente mes"]
[null,"¿Qué acción concreta vas a tomar para mejorar tu flujo de efectivo?"]
[null,"Ejemplo: aumentar ingresos, reducir un gasto, controlar mejor el efectivo, etc."]
[]
[null,"¿Qué metas financieras tienes para el próximo mes?"]
[]
[]
[]
[null,"📝 4. Espacio libre para anotaciones"]
[null,"Escribe lo que aprendiste este mes o tus objetivos financieros "]

{"sheet":"OCTUBRE","index":12,"n_rows":116,"n_cols":9,"rows_kept":116,"cut":false,"hidden":false,"merged":[[115,1,131,5],[76,1,77,6],[79,1,80,6],[92,1,94,5],[102,1,104,5],[108,1,109,5],[111,1,112,5],[1,2,1,8],[3,3,3,8],[22,8,24,8],[51,8,53,8],[67,1,67,6],[73,1,74,6]]}
[]
[null,null,"FLUJO DE EFECTIVO"]
[]
[null,null,"Nombre/Empresa:"]
[]
[]
[]
[]
[null,"Parte 1"]
[]
[null,"Ingresos",null,null,"Egresos",null,null,null,"Flujo Neto Mensual"]
[null,"Ingresos del mes","Monto",null,"Egresos del mes","Monto",null,null,{"$f":"C35 - F35","v":0}]
[null,"Saldo inicial:",null,null,"Insumos"]
[null,"Ventas de productos o servicios",null,null,"Sueldos"]
[null,"Ingresos por comisiones",null,null,"Servicios (luz, internet, etc.)"]
[null,"Ingresos por arrendamiento",null,null,"Papelería"]
[null,"Ingresos por regalías",null,null,"Gasolina"]
[null,"Intereses cobrados",null,null,"Suscripciones "]
[null,"Ingresos por instrumentos financieros ",null,null,"Honorarios profesionales "]
[null,"Ingresos adicionales (freelance, etc.)",null,null,"Renta"]
[null,"Otros ingresos",null,null,"Pago de intereses "]
[null,null,null,null,"Otros gastos del negocio"]
[null,null,null,null,"Impuestos y retenciones ",null,null,null,{"$f":"IF(I12<=0,\"¿De dónde proviene tu financiamiento?\",\"¿En qué vas a invertir este dinero?\")","v":"¿De dónde proviene tu financiamiento?"}]
[null,null,null,null,"IMSS e INFONAVIT"]
[null,null,null,null,"IVA "]
[]
[]
[]
[]
[]
[]
[]
[]
[null,null,"Total Ingresos",null,null,"Total Egresos"]
[null,null,{"$f":"SUM(C13:C33)","v":0},null,null,{"$f":"SUM(F13:F33)","v":0}]
[]
[]
[]
[null,"Activos",null,null,"Pasivos",null,null,null,"Capital"]
[null,"Activos del mes ","Valor",null,"Pasivos del mes ","Valor",null,null,{"$f":"+C63-F63+I52","v":0}]
[null,"Computadora",null,null,"Créditos bancarios empresariales "]
[null,"Automóvil ",null,null,"Créditos bancarios personales"]
[null,"Escritorio",null,null,"Hipotecas"]
[null,"Equipos, maquinaria o herramientas",null,null,"Tarjetas de crédito "]
[null,"Marcas o patentes ",null,null,"Deudas adquiridas con terceros "]
[null,"Inversiones (CETES, acciones, etc.)",0,null,"Otras deudas"]
[null,"Propiedades (casas, oficinas, bodegas, etc.)"]
[null,"Otros activos"]
[null,"Disminución de activos",null,null,"Disminución de pasivos "]
[]
[null,null,null,null,null,null,null,null,"Fondo de Ahoro"]
[]
[]
[]
[]
[]
[]
[]
[]
[]
[]
[null,null,"Total Activos",null,null,"Total Pasivos"]
[null,null,{"$f":"SUM(C41:C61)-C49-C49","v":0},null,null,{"$f":"SUM(F41:F61)-F49-F49","v":0}]
[]
[]
[]
[null,"Parte 2"]
[null,"Análisis financiero mensual"]
[]
[null,"Instrucciones: Analiza la información de la parte 1. Reflexiona sobre tu flujo de efectivo y las decisiones que estás tomando."]
[]
[null,"🧠 1. Conciencia del uso del dinero"]
[null,"¿En qué rubros se va la mayor parte de tu dinero?"]
[]
[]
[null,"¿Cuáles gastos fueron realmente necesarios y cuáles podrías evitar el próximo mes?"]
[]
[]
[null,"¿Tienes gastos que puedes reducir sin afectar tu operación o bienestar?"]
[]
[]
[]
[null,"💡 2. Toma de decisiones"]
[null,"¿Tuviste excedente este mes? ¿Qué hiciste con él?"]
[]
[null,"Lo ahorré"]
[null,"Lo invertí"]
[null,"Lo reinvertí en mi negocio"]
[null,"Lo usé en gastos personales"]
[null,"No sé a dónde se fue"]
[null,"Otro (Especifíca)"]
[]
[]
[]
[]
[]
[null,"Si tuviste un déficit, ¿cómo lo resolviste?"]
[null,"Usé ahorros"]
[null,"Pedí prestado"]
[null,"Dejé de pagar algo"]
[null,"Otro (Especifíca)"]
[]
[]
[]
[]
[]
[null,"🎯 3. Planeación hacia el siguiente mes"]
[null,"¿Qué acción concreta vas a tomar para mejorar tu flujo de efectivo?"]
[null,"Ejemplo: aumentar ingresos, reducir un gasto, controlar mejor el efectivo, etc."]
[]
[null,"¿Qué metas financieras tienes para el próximo mes?"]
[]
[]
[]
[null,"📝 4. Espacio libre para anotaciones"]
[null,"Escribe lo que aprendiste este mes o tus objetivos financieros "]

{"sheet":"NOVIEMBRE","index":13,"n_rows":116,"n_cols":9,"rows_kept":116,"cut":false,"hidden":false,"merged":[[115,1,131,5],[76,1,77,6],[79,1,80,6],[92,1,94,5],[102,1,104,5],[108,1,109,5],[111,1,112,5],[1,2,1,8],[3,3,3,8],[22,8,24,8],[51,8,53,8],[67,1,67,6],[73,1,74,6]]}
[]
[null,null,"FLUJO DE EFECTIVO"]
[]
[null,null,"Nombre/Empresa:"]
[]
[]
[]
[]
[null,"Parte 1"]
[]
[null,"Ingresos",null,null,"Egresos",null,null,null,"Flujo Neto Mensual"]
[null,"Ingresos del mes","Monto",null,"Egresos del mes","Monto",null,null,{"$f":"C35 - F35","v":0}]
[null,"Saldo inicial:",null,null,"Insumos"]
[null,"Ventas de productos o servicios",null,null,"Sueldos"]
[null,"Ingresos por comisiones",null,null,"Servicios (luz, internet, etc.)"]
[null,"Ingresos por arrendamiento",null,null,"Papelería"]
[null,"Ingresos por regalías",null,null,"Gasolina"]
[null,"Intereses cobrados",null,null,"Suscripciones "]
[null,"Ingresos por instrumentos financieros ",null,null,"Honorarios profesionales "]
[null,"Ingresos adicionales (freelance, etc.)",null,null,"Renta"]
[null,"Otros ingresos",null,null,"Pago de intereses "]
[null,null,null,null,"Otros gastos del negocio"]
[null,null,null,null,"Impuestos y retenciones ",null,null,null,{"$f":"IF(I12<=0,\"¿De dónde proviene tu financiamiento?\",\"¿En qué vas a invertir este dinero?\")","v":"¿De dónde proviene tu financiamiento?"}]
[null,null,null,null,"IMSS e INFONAVIT"]
[null,null,null,null,"IVA "]
[]
[]
[]
[]
[]
[]
[]
[]
[null,null,"Total Ingresos",null,null,"Total Egresos"]
[null,null,{"$f":"SUM(C13:C33)","v":0},null,null,{"$f":"SUM(F13:F33)","v":0}]
[]
[]
[]
[null,"Activos",null,null,"Pasivos",null,null,null,"Capital"]
[null,"Activos del mes ","Valor",null,"Pasivos del mes ","Valor",null,null,{"$f":"+C63-F63+I52","v":0}]
[null,"Computadora",null,null,"Créditos bancarios empresariales "]
[null,"Automóvil ",null,null,"Créditos bancarios personales"]
[null,"Escritorio",null,null,"Hipotecas"]
[null,"Equipos, maquinaria o herramientas",null,null,"Tarjetas de crédito "]
[null,"Marcas o patentes ",null,null,"Deudas adquiridas con terceros "]
[null,"Inversiones (CETES, acciones, etc.)",null,null,"Otras deudas"]
[null,"Propiedades (casas, oficinas, bodegas, etc.)"]
[null,"Otros activos"]
[null,"Disminución de activos",null,null,"Disminución de pasivos "]
[]
[null,null,null,null,null,null,null,null,"Fondo de Ahoro"]
[]
[]
[]
[]
[]
[]
[]
[]
[]
[]
[null,null,"Total Activos",null,null,"Total Pasivos"]
[null,null,{"$f":"SUM(C41:C61)-C49-C49","v":0},null,null,{"$f":"SUM(F41:F61)-F49-F49","v":0}]
[]
[]
[]
[null,"Parte 2"]
[null,"Análisis financiero mensual"]
[]
[null,"Instrucciones: Analiza la información de la parte 1. Reflexiona sobre tu flujo de efectivo y las decisiones que estás tomando."]
[]
[null,"🧠 1. Conciencia del uso del dinero"]
[null,"¿En qué rubros se va la mayor parte de tu dinero?"]
[]
[]
[null,"¿Cuáles gastos fueron realmente necesarios y cuáles podrías evitar el próximo mes?"]
[]
[]
[null,"¿Tienes gastos que puedes reducir sin afectar tu operación o bienestar?"]
[]
[]
[]
[null,"💡 2. Toma de decisiones"]
[null,"¿Tuviste excedente este mes? ¿Qué hiciste con él?"]
[]
[null,"Lo ahorré"]
[null,"Lo invertí"]
[null,"Lo reinvertí en mi negocio"]
[null,"Lo usé en gastos personales"]
[null,"No sé a dónde se fue"]
[null,"Otro (Especifíca)"]
[]
[]
[]
[]
[]
[null,"Si tuviste un déficit, ¿cómo lo resolviste?"]
[null,"Usé ahorros"]
[null,"Pedí prestado"]
[null,"Dejé de pagar algo"]
[null,"Otro (Especifíca)"]
[]
[]
[]
[]
[]
[null,"🎯 3. Planeación hacia el siguiente mes"]
[null,"¿Qué acción concreta vas a tomar para mejorar tu flujo de efectivo?"]
[null,"Ejemplo: aumentar ingresos, reducir un gasto, controlar mejor el efectivo, etc."]
[]
[null,"¿Qué metas financieras tienes para el próximo mes?"]
[]
[]
[]
[null,"📝 4. Espacio libre para anotaciones"]
[null,"Escribe lo que aprendiste este mes o tus objetivos financieros "]

{"sheet":"DICIEMBRE","index":14,"n_rows":116,"n_cols":9,"rows_kept":116,"cut":false,"hidden":false,"merged":[[115,1,131,5],[76,1,77,6],[79,1,80,6],[92,1,94,5],[102,1,104,5],[108,1,109,5],[111,1,112,5],[1,2,1,8],[3,3,3,8],[22,8,24,8],[51,8,53,8],[67,1,67,6],[73,1,74,6]]}
[]
[null,null,"FLUJO DE EFECTIVO"]
[]
[null,null,"Nombre/Empresa:"]
[]
[]
[]
[]
[null,"Parte 1"]
[]
[null,"Ingresos",null,null,"Egresos",null,null,null,"Flujo Neto Mensual"]
[null,"Ingresos del mes","Monto",null,"Egresos del mes","Monto",null,null,{"$f":"C35 - F35","v":0}]
[null,"Saldo inicial:",null,null,"Insumos"]
[null,"Ventas de productos o servicios",null,null,"Sueldos"]
[null,"Ingresos por comisiones",null,null,"Servicios (luz, internet, etc.)"]
[null,"Ingresos por arrendamiento",null,null,"Papelería"]
[null,"Ingresos por regalías",null,null,"Gasolina"]
[null,"Intereses cobrados",null,null,"Suscripciones "]
[null,"Ingresos por instrumentos financieros ",null,null,"Honorarios profesionales "]
[null,"Ingresos adicionales (freelance, etc.)",null,null,"Renta"]
[null,"Otros ingresos",null,null,"Pago de intereses "]
[null,null,null,null,"Otros gastos del negocio"]
[null,null,null,null,"Impuestos y retenciones ",null,null,null,{"$f":"IF(I12<=0,\"¿De dónde proviene tu financiamiento?\",\"¿En qué vas a invertir este dinero?\")","v":"¿De dónde proviene tu financiamiento?"}]
[null,null,null,null,"IMSS e INFONAVIT"]
[null,null,null,null,"IVA "]
[]
[]
[]
[]
[]
[]
[]
[]
[null,null,"Total Ingresos",null,null,"Total Egresos"]
[null,null,{"$f":"SUM(C13:C33)","v":0},null,null,{"$f":"SUM(F13:F33)","v":0}]
[]
[]
[]
[null,"Activos",null,null,"Pasivos",null,null,null,"Capital"]
[null,"Activos del mes ","Valor",null,"Pasivos del mes ","Valor",null,null,{"$f":"+C63-F63+I52","v":0}]
[null,"Computadora",null,null,"Créditos bancarios empresariales "]
[null,"Automóvil ",null,null,"Créditos bancarios personales"]
[null,"Escritorio",null,null,"Hipotecas"]
[null,"Equipos, maquinaria o herramientas",null,null,"Tarjetas de crédito "]
[null,"Marcas o patentes ",null,null,"Deudas adquiridas con terceros "]
[null,"Inversiones (CETES, acciones, etc.)",null,null,"Otras deudas"]
[null,"Propiedades (casas, oficinas, bodegas, etc.)"]
[null,"Otros activos"]
[null,"Disminución de activos",null,null,"Disminución de pasivos "]
[]
[null,null,null,null,null,null,null,null,"Fondo de Ahoro"]
[]
[]
[]
[]
[]
[]
[]
[]
[]
[]
[null,null,"Total Activos",null,null,"Total Pasivos"]
[null,null,{"$f":"SUM(C41:C61)-C49-C49","v":0},null,null,{"$f":"SUM(F41:F61)-F49-F49","v":0}]
[]
[]
[]
[null,"Parte 2"]
[null,"Análisis financiero mensual"]
[]
[null,"Instrucciones: Analiza la información de la parte 1. Reflexiona sobre tu flujo de efectivo y las decisiones que estás tomando."]
[]
[null,"🧠 1. Conciencia del uso del dinero"]
[null,"¿En qué rubros se va la mayor parte de tu dinero?"]
[]
[]
[null,"¿Cuáles gastos fueron realmente necesarios y cuáles podrías evitar el próximo mes?"]
[]
[]
[null,"¿Tienes gastos que puedes reducir sin afectar tu operación o bienestar?"]
[]
[]
[]
[null,"💡 2. Toma de decisiones"]
[null,"¿Tuviste excedente este mes? ¿Qué hiciste con él?"]
[]
[null,"Lo ahorré"]
[null,"Lo invertí"]
[null,"Lo reinvertí en mi negocio"]
[null,"Lo usé en gastos personales"]
[null,"No sé a dónde se fue"]
[null,"Otro (Especifíca)"]
[]
[]
[]
[]
[]
[null,"Si tuviste un déficit, ¿cómo lo resolviste?"]
[null,"Usé ahorros"]
[null,"Pedí prestado"]
[null,"Dejé de pagar algo"]
[null,"Otro (Especifíca)"]
[]
[]
[]
[]
[]
[null,"🎯 3. Planeación hacia el siguiente mes"]
[null,"¿Qué acción concreta vas a tomar para mejorar tu flujo de efectivo?"]
[null,"Ejemplo: aumentar ingresos, reducir un gasto, controlar mejor el efectivo, etc."]
[]
[null,"¿Qué metas financieras tienes para el próximo mes?"]
[]
[]
[]
[null,"📝 4. Espacio libre para anotaciones"]
[null,"Escribe lo que aprendiste este mes o tus objetivos financieros "]

{"sheet":"AHORRO","index":15,"n_rows":17,"n_cols":8,"rows_kept":17,"cut":false,"hidden":false,"merged":[[1,1,1,14],[4,7,17,14],[3,7,3,14],[18,1,18,2]]}
[]
[null,"FONDO DE AHORRO"]
[]
[null,null,null,null,null,"Ingresa tu meta ",null,"Objetivos o metas:"]
[null,"Mes ","Ahorro",null,"Meta ",1000000,null,"Detalla tu objetivo (s) o meta (s) que quieres lograr con este ahorro.Por ejemplo, fondo de ahorro para emergencias, reserva para mantenimiento de activos, vacaciones (uso personal) etc."]
[null,"Enero ",{"$f":"+ENERO!$I$52","v":20000},null,"Total ahorrado",{"$f":"SUM(C6:C17)","v":40000},{"$f":"IFERROR(F6/F5,0)","v":0.04}]
[null,"Febrero",{"$f":"+FEBRERO!I52","v":0},null,"Pendiente",{"$f":"IF(F5-F6<0,0,F5-F6)","v":960000},{"$f":"+F7/F5","v":0.96}]
[null,"Marzo",{"$f":"+MARZO!I52","v":0}]
[null,"Abril",{"$f":"+ABRIL!I52","v":20000}]
[null,"Mayo",{"$f":"+MAYO!I52","v":0}]
[null,"Junio",{"$f":"+JUNIO!I52","v":0}]
[null,"Julio",{"$f":"+JULIO!I52","v":0}]
[null,"Agosto",{"$f":"+AGOSTO!I52","v":0}]
[null,"Septiembre",{"$f":"+SEPTIEMBRE!I52","v":0}]
[null,"Octubre",{"$f":"+OCTUBRE!I52","v":0}]
[null,"Noviembre",{"$f":"+NOVIEMBRE!I52","v":0}]
[null,"Diciembre",{"$f":"+DICIEMBRE!I52","v":0}]